[Event "*** Titled Tuesday Blitz"]
[Site "Chess.com"]
[Date "2020.12.01"]
[Round "5"]
[White "Brave_spirit12"]
[Black "GregShahade"]
[Result "0-1"]
[WhiteElo "2489"]
[BlackElo "2705"]
[TimeControl "180+1"]
[EndTime "10:55:37 PST"]
[Termination "GregShahade won on time"]

1. e4 {[%clk 0:02:56.6]} 1... e5 {[%clk 0:02:58.1]} 2. Nf3 {[%clk 0:02:55]} 2...
Nc6 {[%clk 0:02:58.6]} 3. Bc4 {[%clk 0:02:55.6]} 3... Nf6 {[%clk 0:02:58.6]} 4.
O-O {[%clk 0:02:55.5]} 4... Nxe4 {[%clk 0:02:58]} 5. d4 {[%clk 0:02:55.9]} 5...
exd4 {[%clk 0:02:53.5]} 6. Re1 {[%clk 0:02:50]} 6... d5 {[%clk 0:02:53.7]} 7.
Bb5 {[%clk 0:02:50.6]} 7... Bc5 {[%clk 0:02:40.7]} 8. Nxd4 {[%clk 0:02:47.6]}
8... O-O {[%clk 0:02:38.4]} 9. Bxc6 {[%clk 0:02:41.8]} 9... bxc6 {[%clk
0:02:05.2]} 10. Be3 {[%clk 0:02:39.8]} 10... Bxd4 {[%clk 0:02:01.5]} 11. Bxd4
{[%clk 0:02:38.6]} 11... c5 {[%clk 0:02:01.9]} 12. Be3 {[%clk 0:02:35.4]} 12...
Qd6 {[%clk 0:01:56.4]} 13. Nd2 {[%clk 0:02:32]} 13... Nxd2 {[%clk 0:01:33.9]}
14. Qxd2 {[%clk 0:02:32.9]} 14... d4 {[%clk 0:01:28.7]} 15. Bf4 {[%clk
0:02:31.7]} 15... Qb6 {[%clk 0:01:21.7]} 16. c3 {[%clk 0:02:25.6]} 16... Be6
{[%clk 0:01:16.7]} 17. Rad1 {[%clk 0:02:17.1]} 17... Rfd8 {[%clk 0:01:11.1]} 18.
Be5 {[%clk 0:02:14]} 18... Bxa2 {[%clk 0:01:03.2]} 19. b4 {[%clk 0:02:01.8]}
19... Bb3 {[%clk 0:00:52.6]} 20. Rb1 {[%clk 0:01:54.4]} 20... Bd5 {[%clk
0:00:37.1]} 21. bxc5 {[%clk 0:01:50.5]} 21... Qg6 {[%clk 0:00:34.7]} 22. Bg3
{[%clk 0:01:43.3]} 22... dxc3 {[%clk 0:00:34]} 23. Qxc3 {[%clk 0:01:44.2]} 23...
c6 {[%clk 0:00:29.5]} 24. Rb7 {[%clk 0:01:35.1]} 24... a5 {[%clk 0:00:27]} 25.
Rbe7 {[%clk 0:01:31]} 25... h6 {[%clk 0:00:25.6]} 26. h4 {[%clk 0:01:19.9]}
26... a4 {[%clk 0:00:25.1]} 27. Ra1 {[%clk 0:01:16.2]} 27... Bb3 {[%clk
0:00:19.9]} 28. Bd6 {[%clk 0:01:10.5]} 28... Re8 {[%clk 0:00:19.7]} 29. Rb7
{[%clk 0:00:54.6]} 29... Bd5 {[%clk 0:00:18.8]} 30. Bg3 {[%clk 0:00:48.8]} 30...
Qe4 {[%clk 0:00:18.7]} 31. f3 {[%clk 0:00:46.3]} 31... Qe3+ {[%clk 0:00:19.1]}
32. Qxe3 {[%clk 0:00:46]} 32... Rxe3 {[%clk 0:00:20]} 33. Kf2 {[%clk 0:00:13.2]}
33... Rc3 {[%clk 0:00:19.9]} 34. Rb8+ {[%clk 0:00:08.3]} 34... Rxb8 {[%clk
0:00:19.5]} 35. Bxb8 {[%clk 0:00:09.2]} 35... a3 {[%clk 0:00:20]} 36. Ke2 {[%clk
0:00:07.9]} 36... a2 {[%clk 0:00:19.9]} 37. Kd2 {[%clk 0:00:06.7]} 37... Rb3
{[%clk 0:00:18.8]} 38. Be5 {[%clk 0:00:06.4]} 38... Rb5 {[%clk 0:00:18.3]} 39.
Bd4 {[%clk 0:00:05.8]} 39... Rb4 {[%clk 0:00:18.8]} 40. Kc3 {[%clk 0:00:05.3]}
40... Rc4+ {[%clk 0:00:18.7]} 41. Kd3 {[%clk 0:00:05.5]} 41... Rb4 {[%clk
0:00:18.9]} 42. Kc3 {[%clk 0:00:04.3]} 42... Rb1 {[%clk 0:00:19.1]} 43. Kc2
{[%clk 0:00:04.3]} 43... Rb8 {[%clk 0:00:18.5]} 44. Kc3 {[%clk 0:00:02.6]} 44...
Re8 {[%clk 0:00:18.7]} 45. Kd2 {[%clk 0:00:02.5]} 45... h5 {[%clk 0:00:19.3]}
46. Bc3 {[%clk 0:00:02.9]} 46... Kh7 {[%clk 0:00:19.4]} 47. Bd4 {[%clk
0:00:03.3]} 47... Rb8 {[%clk 0:00:19.7]} 48. Bc3 {[%clk 0:00:03.4]} 48... Rb5
{[%clk 0:00:20.3]} 49. Bd4 {[%clk 0:00:03.2]} 49... Rb4 {[%clk 0:00:20.9]} 50.
Kc3 {[%clk 0:00:03.7]} 50... Rc4+ {[%clk 0:00:21.1]} 51. Kd3 {[%clk 0:00:04.3]}
51... Ra4 {[%clk 0:00:21.8]} 52. Kc3 {[%clk 0:00:04.2]} 52... Ra3+ {[%clk
0:00:22.1]} 53. Kd2 {[%clk 0:00:04.3]} 53... Ra8 {[%clk 0:00:22]} 54. Bc3 {[%clk
0:00:04.6]} 54... Kg6 {[%clk 0:00:22.3]} 55. Ke3 {[%clk 0:00:04.9]} 55... Kf5
{[%clk 0:00:22.5]} 56. Bd4 {[%clk 0:00:04.7]} 56... Re8+ {[%clk 0:00:22.7]} 57.
Kd2 {[%clk 0:00:04.9]} 57... Ra8 {[%clk 0:00:23.5]} 58. Bxg7 {[%clk 0:00:04.9]}
58... Rg8 {[%clk 0:00:22.9]} 59. g4+ {[%clk 0:00:03.6]} 59... Kf4 {[%clk
0:00:19.7]} 0-1

[Event "*** Titled Tuesday Blitz"]
[Site "Chess.com"]
[Date "2020.12.01"]
[Round "5"]
[White "HackingKid98"]
[Black "gochatoria98"]
[Result "1-0"]
[WhiteElo "2342"]
[BlackElo "2079"]
[TimeControl "180+1"]
[EndTime "10:55:37 PST"]
[Termination "HackingKid98 won on time"]

1. d4 {[%clk 0:03:00.9]} 1... d5 {[%clk 0:02:59.6]} 2. c4 {[%clk 0:02:59.5]}
2... e5 {[%clk 0:02:59.7]} 3. dxe5 {[%clk 0:02:49.6]} 3... d4 {[%clk 0:02:59.9]}
4. Nf3 {[%clk 0:02:49.4]} 4... Nc6 {[%clk 0:02:59.1]} 5. a3 {[%clk 0:02:48.2]}
5... Nge7 {[%clk 0:02:58.2]} 6. e3 {[%clk 0:02:45.7]} 6... Nf5 {[%clk
0:02:56.7]} 7. exd4 {[%clk 0:02:41.2]} 7... Nfxd4 {[%clk 0:02:56.7]} 8. Nxd4
{[%clk 0:02:28.9]} 8... Qxd4 {[%clk 0:02:56.5]} 9. Nc3 {[%clk 0:02:09.2]} 9...
Bc5 {[%clk 0:02:40.1]} 10. Qxd4 {[%clk 0:01:40.2]} 10... Bxd4 {[%clk 0:02:35.4]}
11. Nb5 {[%clk 0:01:35.8]} 11... Bxe5 {[%clk 0:02:30.5]} 12. f4 {[%clk
0:01:30.4]} 12... a6 {[%clk 0:02:30.3]} 13. fxe5 {[%clk 0:01:24.6]} 13... axb5
{[%clk 0:02:29.5]} 14. cxb5 {[%clk 0:01:24.2]} 14... Nd4 {[%clk 0:02:28.1]} 15.
Bd3 {[%clk 0:01:15.7]} 15... O-O {[%clk 0:02:27.7]} 16. Be3 {[%clk 0:01:11]}
16... Nf5 {[%clk 0:02:22.5]} 17. Bxf5 {[%clk 0:01:08.8]} 17... Bxf5 {[%clk
0:02:21.9]} 18. O-O-O {[%clk 0:01:08.4]} 18... Rfe8 {[%clk 0:02:17.2]} 19. Bf4
{[%clk 0:01:06.9]} 19... Be6 {[%clk 0:02:14.5]} 20. Rd3 {[%clk 0:01:00.1]} 20...
Ra5 {[%clk 0:02:13.4]} 21. Rc3 {[%clk 0:00:57.1]} 21... Rc8 {[%clk 0:01:58.2]}
22. b6 {[%clk 0:00:56.1]} 22... cxb6 {[%clk 0:01:48.5]} 23. Rxc8+ {[%clk
0:00:53.4]} 23... Bxc8 {[%clk 0:01:48.7]} 24. Kd2 {[%clk 0:00:40.5]} 24... Be6
{[%clk 0:01:39.7]} 25. Rc1 {[%clk 0:00:38.4]} 25... Rc5 {[%clk 0:01:23.8]} 26.
Rc3 {[%clk 0:00:22.3]} 26... h6 {[%clk 0:01:10.4]} 27. Be3 {[%clk 0:00:20.7]}
27... Rd5+ {[%clk 0:01:10.6]} 28. Rd3 {[%clk 0:00:20]} 28... Rxe5 {[%clk
0:01:09.1]} 29. Bxb6 {[%clk 0:00:18.5]} 29... Kh7 {[%clk 0:01:03]} 30. Bd4
{[%clk 0:00:16.6]} 30... Rd5 {[%clk 0:00:58.8]} 31. Bc3 {[%clk 0:00:14.6]} 31...
Rb5 {[%clk 0:00:56]} 32. g3 {[%clk 0:00:13.7]} 32... h5 {[%clk 0:00:52.4]} 33.
Rd6 {[%clk 0:00:12.7]} 33... Kg6 {[%clk 0:00:50.8]} 34. Ke3 {[%clk 0:00:12.5]}
34... Rf5 {[%clk 0:00:44.5]} 35. a4 {[%clk 0:00:12]} 35... Rd5 {[%clk
0:00:27.3]} 36. Rxd5 {[%clk 0:00:11.3]} 36... Bxd5 {[%clk 0:00:28.2]} 37. Kd4
{[%clk 0:00:11.9]} 37... Bc6 {[%clk 0:00:24.3]} 38. a5 {[%clk 0:00:12.8]} 38...
Kf5 {[%clk 0:00:24.2]} 39. Kc5 {[%clk 0:00:13.7]} 39... Ke6 {[%clk 0:00:24.5]}
40. a6 {[%clk 0:00:13.4]} 40... Bf3 {[%clk 0:00:16.2]} 41. a7 {[%clk 0:00:12.5]}
41... b6+ {[%clk 0:00:09.4]} 42. Kxb6 {[%clk 0:00:12.3]} 42... Kd7 {[%clk
0:00:09.1]} 43. Bxg7 {[%clk 0:00:11.5]} 43... Kc8 {[%clk 0:00:09]} 44. Be5
{[%clk 0:00:11]} 44... Be4 {[%clk 0:00:04.1]} 45. Bf4 {[%clk 0:00:11.9]} 45...
Bf3 {[%clk 0:00:04.2]} 46. b4 {[%clk 0:00:12.2]} 46... Bg2 {[%clk 0:00:04]} 47.
b5 {[%clk 0:00:12.2]} 47... Bf3 {[%clk 0:00:01.9]} 48. h4 {[%clk 0:00:11.4]}
48... Bg2 {[%clk 0:00:01.2]} 49. Kc5 {[%clk 0:00:11.9]} 1-0

[Event "*** Titled Tuesday Blitz"]
[Site "Chess.com"]
[Date "2020.12.01"]
[Round "5"]
[White "Gabrielian_Artur"]
[Black "Micki-taryan"]
[Result "0-1"]
[WhiteElo "2757"]
[BlackElo "3011"]
[TimeControl "180+1"]
[EndTime "10:55:38 PST"]
[Termination "Micki-taryan won on time"]

1. e4 {[%clk 0:03:00.9]} 1... d6 {[%clk 0:02:55.2]} 2. d4 {[%clk 0:02:59.7]}
2... Nf6 {[%clk 0:02:55.7]} 3. Nc3 {[%clk 0:02:59.3]} 3... Nbd7 {[%clk
0:02:55.1]} 4. Nf3 {[%clk 0:02:58.5]} 4... e5 {[%clk 0:02:54.9]} 5. Bc4 {[%clk
0:02:57.4]} 5... Be7 {[%clk 0:02:55.3]} 6. O-O {[%clk 0:02:56.9]} 6... O-O
{[%clk 0:02:55]} 7. a4 {[%clk 0:02:57]} 7... c6 {[%clk 0:02:54.5]} 8. Re1 {[%clk
0:02:56.2]} 8... b6 {[%clk 0:02:50.3]} 9. h3 {[%clk 0:02:50.4]} 9... Bb7 {[%clk
0:02:47.6]} 10. d5 {[%clk 0:02:48.5]} 10... cxd5 {[%clk 0:02:47.4]} 11. Nxd5
{[%clk 0:02:48.3]} 11... Rc8 {[%clk 0:02:46.8]} 12. Nxf6+ {[%clk 0:02:20.9]}
12... Nxf6 {[%clk 0:02:44.5]} 13. Bd3 {[%clk 0:02:21]} 13... a6 {[%clk
0:02:10.3]} 14. c4 {[%clk 0:02:20.2]} 14... Nd7 {[%clk 0:02:08.8]} 15. b3 {[%clk
0:02:18.1]} 15... Nc5 {[%clk 0:02:06.3]} 16. Bc2 {[%clk 0:02:17.9]} 16... a5
{[%clk 0:01:34.4]} 17. Nd2 {[%clk 0:02:06.4]} 17... Bg5 {[%clk 0:01:30.5]} 18.
Nf1 {[%clk 0:02:05.8]} 18... Bxc1 {[%clk 0:01:31.4]} 19. Rxc1 {[%clk 0:02:05.6]}
19... Ne6 {[%clk 0:01:26.1]} 20. Ng3 {[%clk 0:02:03.8]} 20... g6 {[%clk
0:01:24.1]} 21. Qd2 {[%clk 0:02:00.3]} 21... Nf4 {[%clk 0:01:18.8]} 22. Ne2
{[%clk 0:01:53.6]} 22... Qg5 {[%clk 0:01:15.2]} 23. Nxf4 {[%clk 0:01:51.9]}
23... exf4 {[%clk 0:01:16.1]} 24. Rcd1 {[%clk 0:01:13.7]} 24... Rcd8 {[%clk
0:01:10.4]} 25. f3 {[%clk 0:01:09.1]} 25... Qe5 {[%clk 0:01:06.2]} 26. Qf2
{[%clk 0:01:08.5]} 26... Qc5 {[%clk 0:01:06]} 27. Rd2 {[%clk 0:01:07.2]} 27...
Rfe8 {[%clk 0:01:01.9]} 28. Red1 {[%clk 0:01:06]} 28... Qxf2+ {[%clk 0:01:01]}
29. Kxf2 {[%clk 0:01:05.9]} 29... Re6 {[%clk 0:01:01.9]} 30. h4 {[%clk
0:01:01.8]} 30... Kf8 {[%clk 0:01:00.9]} 31. Rb1 {[%clk 0:00:51.9]} 31... Rc8
{[%clk 0:00:55.6]} 32. Bd3 {[%clk 0:00:43.5]} 32... Bc6 {[%clk 0:00:51.3]} 33.
Be2 {[%clk 0:00:42.3]} 33... Ke7 {[%clk 0:00:50.9]} 34. Rh1 {[%clk 0:00:32.8]}
34... Re5 {[%clk 0:00:50.4]} 35. Rhd1 {[%clk 0:00:31.6]} 35... Rd8 {[%clk
0:00:47.8]} 36. Rb1 {[%clk 0:00:28.4]} 36... Kd7 {[%clk 0:00:45.5]} 37. Rbd1
{[%clk 0:00:21.5]} 37... Kc7 {[%clk 0:00:45.7]} 38. Rh1 {[%clk 0:00:21]} 38...
h6 {[%clk 0:00:45]} 39. Rdd1 {[%clk 0:00:16.9]} 39... Rde8 {[%clk 0:00:44]} 40.
Rd2 {[%clk 0:00:16.9]} 40... R8e6 {[%clk 0:00:43.6]} 41. Bd3 {[%clk 0:00:17.2]}
41... Bb7 {[%clk 0:00:41.8]} 42. Bc2 {[%clk 0:00:17.5]} 42... Kc6 {[%clk
0:00:40.8]} 43. Rhd1 {[%clk 0:00:17.4]} 43... Kc5 {[%clk 0:00:39.7]} 44. Bd3
{[%clk 0:00:12.4]} 44... Bc6 {[%clk 0:00:39.6]} 45. Be2 {[%clk 0:00:11.9]} 45...
Rh5 {[%clk 0:00:39.2]} 46. Rh1 {[%clk 0:00:10.4]} 46... g5 {[%clk 0:00:38.8]}
47. g4 {[%clk 0:00:07.6]} 47... fxg3+ {[%clk 0:00:25.9]} 48. Kxg3 {[%clk
0:00:07.9]} 48... Rg6 {[%clk 0:00:26.4]} 49. Kf2 {[%clk 0:00:07.8]} 49... Rxh4
{[%clk 0:00:26]} 50. Rxh4 {[%clk 0:00:07.5]} 50... gxh4 {[%clk 0:00:26.9]} 51.
Rd1 {[%clk 0:00:08.1]} 51... h3 {[%clk 0:00:24.4]} 52. Rh1 {[%clk 0:00:07.6]}
52... Rg2+ {[%clk 0:00:24.8]} 53. Ke3 {[%clk 0:00:08]} 53... h2 {[%clk
0:00:24.9]} 54. f4 {[%clk 0:00:07]} 54... Bxe4 {[%clk 0:00:21.6]} 55. Bf1 {[%clk
0:00:03.7]} 55... Re2+ {[%clk 0:00:16.9]} 0-1

[Event "*** Titled Tuesday Blitz"]
[Site "Chess.com"]
[Date "2020.12.01"]
[Round "5"]
[White "PavelShkapenko"]
[Black "Kretov_Evgenij"]
[Result "1/2-1/2"]
[WhiteElo "2697"]
[BlackElo "2495"]
[TimeControl "180+1"]
[EndTime "10:55:40 PST"]
[Termination "Game drawn by stalemate"]

1. e4 {[%clk 0:03:00.9]} 1... c5 {[%clk 0:03:00.2]} 2. c3 {[%clk 0:03:00.9]}
2... d5 {[%clk 0:02:59.7]} 3. exd5 {[%clk 0:03:00.9]} 3... Qxd5 {[%clk 0:03:00]}
4. Nf3 {[%clk 0:03:01.6]} 4... g6 {[%clk 0:03:00.1]} 5. Na3 {[%clk 0:03:00.5]}
5... Bg7 {[%clk 0:02:58.8]} 6. Bc4 {[%clk 0:03:00.4]} 6... Qd7 {[%clk
0:02:52.6]} 7. d4 {[%clk 0:02:29.1]} 7... cxd4 {[%clk 0:02:51.6]} 8. Nxd4 {[%clk
0:02:28.2]} 8... Nc6 {[%clk 0:02:42.4]} 9. O-O {[%clk 0:02:23.5]} 9... Nf6
{[%clk 0:02:41.2]} 10. Nxc6 {[%clk 0:01:57.9]} 10... bxc6 {[%clk 0:02:39.2]} 11.
Qxd7+ {[%clk 0:01:53.7]} 11... Bxd7 {[%clk 0:02:38.9]} 12. Re1 {[%clk
0:01:53.6]} 12... Nd5 {[%clk 0:02:27.9]} 13. Nb5 {[%clk 0:01:35.2]} 13... cxb5
{[%clk 0:02:18]} 14. Bxd5 {[%clk 0:01:34.8]} 14... Rc8 {[%clk 0:02:17]} 15. Be3
{[%clk 0:01:01.9]} 15... a5 {[%clk 0:02:00.2]} 16. Bg5 {[%clk 0:00:46.4]} 16...
e6 {[%clk 0:01:52]} 17. Rad1 {[%clk 0:00:35]} 17... h6 {[%clk 0:01:48.4]} 18.
Bf4 {[%clk 0:00:33.1]} 18... Bc6 {[%clk 0:01:45.7]} 19. Bxc6+ {[%clk 0:00:21.4]}
19... Rxc6 {[%clk 0:01:45.1]} 20. Rd6 {[%clk 0:00:22.1]} 20... Rxd6 {[%clk
0:01:43.8]} 21. Bxd6 {[%clk 0:00:22.4]} 21... Kd7 {[%clk 0:01:43.9]} 22. Rd1
{[%clk 0:00:22.5]} 22... Kc6 {[%clk 0:01:40.8]} 23. Ba3 {[%clk 0:00:22.6]} 23...
Be5 {[%clk 0:01:39.5]} 24. Kf1 {[%clk 0:00:22.4]} 24... Rb8 {[%clk 0:01:38.9]}
25. Be7 {[%clk 0:00:22.5]} 25... Rb7 {[%clk 0:01:10.3]} 26. Bf8 {[%clk
0:00:22.2]} 26... h5 {[%clk 0:01:09.3]} 27. a3 {[%clk 0:00:22.4]} 27... a4
{[%clk 0:01:07]} 28. g3 {[%clk 0:00:22]} 28... Rd7 {[%clk 0:01:03.7]} 29. Rxd7
{[%clk 0:00:21.4]} 29... Kxd7 {[%clk 0:01:04]} 30. Ke2 {[%clk 0:00:22]} 30...
Kc6 {[%clk 0:01:04.3]} 31. Kd3 {[%clk 0:00:21.6]} 31... Kd5 {[%clk 0:01:04.7]}
32. Bh6 {[%clk 0:00:21.6]} 32... Bd6 {[%clk 0:01:03.6]} 33. Be3 {[%clk
0:00:21.7]} 33... e5 {[%clk 0:01:02.6]} 34. f3 {[%clk 0:00:22]} 34... f5 {[%clk
0:01:02.3]} 35. Bg5 {[%clk 0:00:21.8]} 35... e4+ {[%clk 0:01:01.6]} 36. fxe4+
{[%clk 0:00:21.8]} 36... fxe4+ {[%clk 0:01:01.8]} 37. Ke3 {[%clk 0:00:21.5]}
37... Bc5+ {[%clk 0:01:01.8]} 38. Kf4 {[%clk 0:00:21.6]} 38... Bd6+ {[%clk
0:00:57.9]} 39. Ke3 {[%clk 0:00:21.5]} 39... Bc7 {[%clk 0:00:58.2]} 40. Bh6
{[%clk 0:00:21.1]} 40... Be5 {[%clk 0:00:55.7]} 41. Bf4 {[%clk 0:00:20.5]} 41...
Bf6 {[%clk 0:00:56]} 42. Bc7 {[%clk 0:00:20.3]} 42... g5 {[%clk 0:00:55.4]} 43.
Bb6 {[%clk 0:00:20.1]} 43... Be7 {[%clk 0:00:54.6]} 44. Ba7 {[%clk 0:00:19.6]}
44... Bd6 {[%clk 0:00:54.4]} 45. Bb6 {[%clk 0:00:19.4]} 45... h4 {[%clk
0:00:53.3]} 46. gxh4 {[%clk 0:00:19.1]} 46... gxh4 {[%clk 0:00:53.6]} 47. h3
{[%clk 0:00:19.7]} 47... Bg3 {[%clk 0:00:53.8]} 48. Ba7 {[%clk 0:00:19.6]} 48...
Kc4 {[%clk 0:00:49.9]} 49. Kxe4 {[%clk 0:00:19]} 49... Kb3 {[%clk 0:00:50.3]}
50. Kd5 {[%clk 0:00:17.4]} 50... Kxb2 {[%clk 0:00:50.4]} 51. Kc6 {[%clk
0:00:17.8]} 51... Kxa3 {[%clk 0:00:49.7]} 52. Kxb5 {[%clk 0:00:18.1]} 52... Kb3
{[%clk 0:00:50.1]} 53. Bc5 {[%clk 0:00:16.9]} 53... Be5 {[%clk 0:00:30.6]} 54.
c4 {[%clk 0:00:15.2]} 54... Bb2 {[%clk 0:00:30]} 55. Be7 {[%clk 0:00:14.4]}
55... a3 {[%clk 0:00:29]} 56. Bxa3 {[%clk 0:00:13.9]} 56... Bxa3 {[%clk
0:00:29.2]} 57. c5 {[%clk 0:00:14.1]} 57... Kc3 {[%clk 0:00:29.1]} 58. c6 {[%clk
0:00:13.6]} 58... Bd6 {[%clk 0:00:29.3]} 59. Kb6 {[%clk 0:00:13.3]} 59... Kd4
{[%clk 0:00:29.6]} 60. c7 {[%clk 0:00:13.5]} 60... Bxc7+ {[%clk 0:00:29.9]} 61.
Kxc7 {[%clk 0:00:14.4]} 61... Ke3 {[%clk 0:00:30.4]} 62. Kd6 {[%clk 0:00:15]}
62... Kf3 {[%clk 0:00:30.8]} 63. Ke5 {[%clk 0:00:15.7]} 63... Kg3 {[%clk
0:00:31.3]} 64. Ke4 {[%clk 0:00:16.3]} 64... Kxh3 {[%clk 0:00:31.7]} 65. Kf3
{[%clk 0:00:14.5]} 65... Kh2 {[%clk 0:00:31.2]} 66. Kf2 {[%clk 0:00:13.4]} 66...
h3 {[%clk 0:00:31.6]} 67. Kf1 {[%clk 0:00:13.5]} 67... Kh1 {[%clk 0:00:32]} 68.
Kf2 {[%clk 0:00:13.6]} 68... h2 {[%clk 0:00:32.5]} 69. Kf1 {[%clk 0:00:13.9]}
1/2-1/2

[Event "*** Titled Tuesday Blitz"]
[Site "Chess.com"]
[Date "2020.12.01"]
[Round "5"]
[White "Homino"]
[Black "arminmusovic"]
[Result "1/2-1/2"]
[WhiteElo "2375"]
[BlackElo "2530"]
[TimeControl "180+1"]
[EndTime "10:55:42 PST"]
[Termination "Game drawn by repetition"]

1. e4 {[%clk 0:03:00.9]} 1... c6 {[%clk 0:02:57.3]} 2. d4 {[%clk 0:03:00.2]}
2... d5 {[%clk 0:02:58.2]} 3. Nc3 {[%clk 0:02:59.5]} 3... dxe4 {[%clk
0:02:58.6]} 4. Nxe4 {[%clk 0:03:00.4]} 4... Nf6 {[%clk 0:02:59.3]} 5. Nxf6+
{[%clk 0:03:00.3]} 5... exf6 {[%clk 0:03:00.2]} 6. c3 {[%clk 0:03:00.3]} 6...
Bd6 {[%clk 0:03:01.1]} 7. Bd3 {[%clk 0:02:58.8]} 7... O-O {[%clk 0:03:01.6]} 8.
Ne2 {[%clk 0:02:58.8]} 8... Re8 {[%clk 0:03:02.5]} 9. O-O {[%clk 0:02:57.9]}
9... Kh8 {[%clk 0:03:02.2]} 10. Qc2 {[%clk 0:02:55]} 10... Nd7 {[%clk 0:03:02]}
11. Ng3 {[%clk 0:02:53]} 11... Nf8 {[%clk 0:03:01.9]} 12. Bd2 {[%clk 0:02:47.8]}
12... Qc7 {[%clk 0:03:01.7]} 13. Rfe1 {[%clk 0:02:45.7]} 13... Be6 {[%clk
0:03:01.7]} 14. a4 {[%clk 0:02:38.2]} 14... Re7 {[%clk 0:02:54.9]} 15. Re2
{[%clk 0:02:31.2]} 15... Rae8 {[%clk 0:02:52.5]} 16. Rae1 {[%clk 0:02:30.7]}
16... Bg4 {[%clk 0:02:46.9]} 17. Rxe7 {[%clk 0:02:23.3]} 17... Rxe7 {[%clk
0:02:47.8]} 18. Rxe7 {[%clk 0:02:18.7]} 18... Bxe7 {[%clk 0:02:37.8]} 19. Bf5
{[%clk 0:02:02.5]} 19... Bxf5 {[%clk 0:02:35.7]} 20. Qxf5 {[%clk 0:02:02.8]}
20... g6 {[%clk 0:02:34.6]} 21. Qf3 {[%clk 0:01:53.8]} 21... Qa5 {[%clk
0:02:20.9]} 22. b3 {[%clk 0:01:48.3]} 22... Kg7 {[%clk 0:02:13.5]} 23. h4 {[%clk
0:01:43.9]} 23... h5 {[%clk 0:02:08.7]} 24. Qe3 {[%clk 0:01:40.9]} 24... Ne6
{[%clk 0:01:59]} 25. Ne4 {[%clk 0:01:20.7]} 25... Qf5 {[%clk 0:01:39.2]} 26. g3
{[%clk 0:01:07.7]} 26... Kg8 {[%clk 0:01:36]} 27. c4 {[%clk 0:01:04.6]} 27... b6
{[%clk 0:01:22.9]} 28. Kg2 {[%clk 0:01:02.1]} 28... Kg7 {[%clk 0:01:04.6]} 29.
Bc3 {[%clk 0:00:59.1]} 29... Kg8 {[%clk 0:00:57.7]} 30. Bb2 {[%clk 0:00:57]}
30... Nc7 {[%clk 0:00:47.3]} 31. Nd2 {[%clk 0:00:49.3]} 31... Qe6 {[%clk
0:00:47]} 32. Ne4 {[%clk 0:00:42.1]} 32... f5 {[%clk 0:00:44.8]} 33. Nc3 {[%clk
0:00:38]} 33... Qxe3 {[%clk 0:00:42.8]} 34. fxe3 {[%clk 0:00:38.9]} 34... f6
{[%clk 0:00:43]} 35. Kf3 {[%clk 0:00:37.7]} 35... Bb4 {[%clk 0:00:41.8]} 36. Ne2
{[%clk 0:00:37.7]} 36... Be1 {[%clk 0:00:40.5]} 37. Nf4 {[%clk 0:00:37.3]} 37...
Kf7 {[%clk 0:00:40.4]} 38. Ba3 {[%clk 0:00:37.3]} 38... Na6 {[%clk 0:00:35.2]}
39. Nd3 {[%clk 0:00:37.2]} 39... Bc3 {[%clk 0:00:32.7]} 40. Bd6 {[%clk
0:00:36.8]} 40... Ke6 {[%clk 0:00:28.5]} 41. Bf8 {[%clk 0:00:35.5]} 41... Kf7
{[%clk 0:00:28.6]} 42. Ba3 {[%clk 0:00:34.7]} 42... Bd2 {[%clk 0:00:28.9]} 43.
Nf4 {[%clk 0:00:34.5]} 43... c5 {[%clk 0:00:26.5]} 44. d5 {[%clk 0:00:32.4]}
44... Bb4 {[%clk 0:00:25.5]} 45. Bb2 {[%clk 0:00:30.7]} 45... Nb8 {[%clk
0:00:25.3]} 46. Nd3 {[%clk 0:00:29.6]} 46... Ba5 {[%clk 0:00:20.7]} 47. Nf4
{[%clk 0:00:29.2]} 47... Nd7 {[%clk 0:00:20.9]} 48. Ne6 {[%clk 0:00:28.4]} 48...
Bb4 {[%clk 0:00:20.3]} 49. Nd8+ {[%clk 0:00:27.5]} 49... Kf8 {[%clk 0:00:20]}
50. Nc6 {[%clk 0:00:27.8]} 50... a5 {[%clk 0:00:20.5]} 51. Kf4 {[%clk
0:00:23.4]} 51... Kg7 {[%clk 0:00:20.5]} 52. Nd8 {[%clk 0:00:21.8]} 52... Be1
{[%clk 0:00:20.2]} 53. Ne6+ {[%clk 0:00:21.8]} 53... Kf7 {[%clk 0:00:20.3]} 54.
Nd8+ {[%clk 0:00:20.2]} 54... Kg7 {[%clk 0:00:20.9]} 55. Nb7 {[%clk 0:00:21]}
55... Ne5 {[%clk 0:00:20.5]} 56. Bxe5 {[%clk 0:00:20.2]} 56... fxe5+ {[%clk
0:00:21.4]} 57. Kf3 {[%clk 0:00:20.7]} 57... Kf6 {[%clk 0:00:20.5]} 58. Kg2
{[%clk 0:00:18.4]} 58... Bc3 {[%clk 0:00:19.7]} 59. Kf3 {[%clk 0:00:18.2]} 59...
e4+ {[%clk 0:00:19.7]} 60. Ke2 {[%clk 0:00:17.6]} 60... Be5 {[%clk 0:00:20.6]}
61. Nd8 {[%clk 0:00:17]} 61... Ke7 {[%clk 0:00:19.4]} 62. Nc6+ {[%clk
0:00:16.4]} 62... Kd6 {[%clk 0:00:18.5]} 63. Nxe5 {[%clk 0:00:16.2]} 63... Kxe5
{[%clk 0:00:19.4]} 64. Kd2 {[%clk 0:00:16.3]} 64... Kd6 {[%clk 0:00:19.9]} 65.
Ke2 {[%clk 0:00:16.9]} 65... Ke5 {[%clk 0:00:20.5]} 66. Kd2 {[%clk 0:00:17.4]}
66... Kf6 {[%clk 0:00:21]} 67. Kc3 {[%clk 0:00:18.1]} 67... Ke5 {[%clk
0:00:20.6]} 68. Kd2 {[%clk 0:00:19]} 1/2-1/2